{"text_format":"3","workbook":"xlsx","n_sheets":4,"sheets":["YEAR 1","YEAR 2","YEAR 3","Totals"],"not_rendered":{"images":1,"defined_names":1},"read":"whole","date_system":"1900"}

{"sheet":"YEAR 1","index":0,"n_rows":36,"n_cols":4,"rows_kept":36,"merged":[[1,0,1,3],[2,0,2,3],[10,0,10,2],[12,0,12,2],[23,0,23,2],[24,0,24,3],[25,0,25,3]]}
[]
["PRICING SHEET"]
["APPOINTMENT OF A TRAINING PROVIDER/S TO DELIVER TRAINING TO EMPLOYEES OF SMALL MEDIUM ENTERPRISE (SME) EMPLOYERS  TRAINING NATIONALLY TO EMPLOYEES OF THE BANKING AND ALTERNATIVE BANKING SECTOR FOR A PERIOD OF THREE YEARS.  BS/2024/RFB533"]
["Description","Delegates","Unit Price","Amount"]
["Register the employees/candidates and collate all administrative documents.",500,0,{"$f":"B5*C5","v":0}]
["The delivery of training  including\n-\tProvide the venue.\n-\tProvide training manuals.\n-\tFacilitate the training.\n\n",500,0,{"$f":"B6*C6","v":0}]
["Assessments including one re assessment if needed",500,0,{"$f":"B7*C7","v":0}]
["Administration (attendance registers, progress report, workshop evaluation and certificates of competence)",500,0,0]
[" On site Catering (tea / coffee with a light snack and lunch each day of the workshop) ",500,0,0]
[]
["SUB-TOTAL ",null,null,{"$f":"SUM(D5:D10)","v":0}]
[]
["Additional costing not indicated above",null,null," Amount "]
[1,null,0,{"$f":"B14*C14","v":0}]
[2,null,0,{"$f":"B15*C15","v":0}]
[3,null,0,0]
[4,null,0,0]
[{"$nulls":3},{"$f":"SUM(D14:D17)","v":0}]
[]
["TOTAL AMOUNT BEFORE VAT",null,null,{"$f":"D11+D18","v":0}]
["VAT ",null,null,{"$f":"D20*15/100","v":0}]
["TOTAL AMOUNT (BIDDING PRICE)",null,null,{"$f":"D20+D21","v":0}]
["Notes:"]
["Pricing must cover all items detailed in the appropriate Terms of Reference (Scope)."]
["Pricing must remain firm for the particurlar year for the duration of the contract."]
["The total VAT amount is calculated automatically in row 17. VAT is required in in this row and If the company is not VAT registered please statVAT is required in a separate row and If the company is not VAT registered please state so below and override the VAT amount"]
[]
[]
["Company Name "]
[]
["Representative Name:"]
[]
["Date:"]
[]
[]
["Signature"]

{"sheet":"YEAR 2","index":1,"n_rows":36,"n_cols":4,"rows_kept":36,"merged":[[1,0,1,3],[2,0,2,3],[10,0,10,2],[12,0,12,2],[23,0,23,2],[24,0,24,3],[25,0,25,3]]}
[]
["PRICING SHEET"]
["APPOINTMENT OF A TRAINING PROVIDER/S TO DELIVER TRAINING TO EMPLOYEES OF SMALL MEDIUM ENTERPRISE (SME) EMPLOYERS  TRAINING NATIONALLY TO EMPLOYEES OF THE BANKING AND ALTERNATIVE BANKING SECTOR FOR A PERIOD OF THREE YEARS.  BS/2024/RFB533"]
["Description","Delegates","Unit Price","Amount"]
["Register the employees/candidates and collate all administrative documents.",500,0,{"$f":"B5*C5","v":0}]
["The delivery of training  including\n-\tProvide the venue.\n-\tProvide training manuals.\n-\tFacilitate the training.\n\n",500,0,{"$f":"B6*C6","v":0}]
["Assessments including one re assessment if needed",500,0,{"$f":"B7*C7","v":0}]
["Administration (attendance registers, progress report, workshop evaluation and certificates of competence)",500,0,0]
[" On site Catering (tea / coffee with a light snack and lunch each day of the workshop) ",500,0,0]
[]
["SUB-TOTAL ",null,null,{"$f":"SUM(D5:D10)","v":0}]
[]
["Additional costing not indicated above",null,null," Amount "]
[null,null,0,{"$f":"B14*C14","v":0}]
[2,null,0,{"$f":"B15*C15","v":0}]
[3,null,0,0]
[4,null,0,0]
[{"$nulls":3},{"$f":"SUM(D14:D17)","v":0}]
[]
["TOTAL AMOUNT BEFORE VAT",null,null,{"$f":"D11+D18","v":0}]
["VAT ",null,null,{"$f":"D20*15/100","v":0}]
["TOTAL AMOUNT (BIDDING PRICE)",null,null,{"$f":"D20+D21","v":0}]
["Notes:"]
["Pricing must cover all items detailed in the appropriate Terms of Reference (Scope)."]
["Pricing must remain firm for the particurlar year for the duration of the contract."]
["The total VAT amount is calculated automatically in row 17. VAT is required in in this row and If the company is not VAT registered please statVAT is required in a separate row and If the company is not VAT registered please state so below and override the VAT amount"]
[]
[]
["Company Name "]
[]
["Representative Name:"]
[]
["Date:"]
[]
[]
["Signature"]

{"sheet":"YEAR 3","index":2,"n_rows":36,"n_cols":4,"rows_kept":36,"merged":[[1,0,1,3],[2,0,2,3],[10,0,10,2],[12,0,12,2],[23,0,23,2],[24,0,24,3],[25,0,25,3]]}
[]
["PRICING SHEET"]
["APPOINTMENT OF A TRAINING PROVIDER/S TO DELIVER TRAINING TO EMPLOYEES OF SMALL MEDIUM ENTERPRISE (SME) EMPLOYERS  TRAINING NATIONALLY TO EMPLOYEES OF THE BANKING AND ALTERNATIVE BANKING SECTOR FOR A PERIOD OF THREE YEARS.  - BS/2024/RFB533"]
["Description","Delegates","Unit Price","Amount"]
["Register the employees/candidates and collate all administrative documents.",500,0,{"$f":"B5*C5","v":0}]
["The delivery of training  including\n-\tProvide the venue.\n-\tProvide training manuals.\n-\tFacilitate the training.\n\n",500,0,{"$f":"B6*C6","v":0}]
["Assessments including one re assessment if needed",500,0,{"$f":"B7*C7","v":0}]
["Administration (attendance registers, progress report, workshop evaluation and certificates of competence)",500,0,0]
[" On site Catering (tea / coffee with a light snack and lunch each day of the workshop) ",500,0,0]
[]
["SUB-TOTAL ",null,null,{"$f":"SUM(D5:D10)","v":0}]
[]
["Additional costing not indicated above",null,null," Amount "]
[1,null,0,{"$f":"B14*C14","v":0}]
[2,null,0,{"$f":"B15*C15","v":0}]
[3,null,0,0]
[4,null,0,0]
[{"$nulls":3},{"$f":"SUM(D14:D17)","v":0}]
[]
["TOTAL AMOUNT BEFORE VAT",null,null,{"$f":"D11+D18","v":0}]
["VAT ",null,null,{"$f":"D20*15/100","v":0}]
["TOTAL AMOUNT (BIDDING PRICE)",null,null,{"$f":"D20+D21","v":0}]
["Notes:"]
["Pricing must cover all items detailed in the appropriate Terms of Reference (Scope)."]
["Pricing must remain firm for the particurlar year for the duration of the contract."]
["The total VAT amount is calculated automatically in row 17. VAT is required in in this row and If the company is not VAT registered please statVAT is required in a separate row and If the company is not VAT registered please state so below and override the VAT amount"]
[]
[]
["Company Name "]
[]
["Representative Name:"]
[]
["Date:"]
[]
[]
["Signature"]

{"sheet":"Totals","index":3,"n_rows":36,"n_cols":5,"rows_kept":36,"merged":[[1,1,1,4],[2,1,2,4],[10,1,10,3],[12,1,12,3],[23,1,23,3],[24,1,24,4],[25,1,25,4]]}
[]
[null,"PRICING SHEET"]
[null,"APPOINTMENT OF A TRAINING PROVIDER/S TO DELIVER TRAINING TO EMPLOYEES OF SMALL MEDIUM ENTERPRISE (SME) EMPLOYERS  TRAINING NATIONALLY TO EMPLOYEES OF THE BANKING AND ALTERNATIVE BANKING SECTOR FOR A PERIOD OF THREE YEARS.  - BS/2024/RFB533"]
[null,"Description",null,null,"TOTAL FOR ALL 3 YEARS"]
[null,"Register the employees/candidates and collate all administrative documents.",null,null,{"$f":"+'YEAR 3'!D5+'YEAR 2'!D5+'YEAR 1'!D5","v":0}]
[null,"The delivery of training  including\n-\tProvide the venue.\n-\tProvide training manuals.\n-\tFacilitate the training.\n\n",null,null,{"$f":"+'YEAR 3'!D6+'YEAR 2'!D6+'YEAR 1'!D6","v":0}]
[null,"Assessments including one re assessment if needed",null,null,{"$f":"+'YEAR 3'!D7+'YEAR 2'!D7+'YEAR 1'!D7","v":0}]
[null,"Administration (attendance registers, progress report, workshop evaluation and certificates of competence)",null,null,{"$f":"+'YEAR 3'!D8+'YEAR 2'!D8+'YEAR 1'!D8","v":0}]
[null," On site Catering (tea / coffee with a light snack and lunch each day of the workshop) ",null,null,{"$f":"+'YEAR 3'!D9+'YEAR 2'!D9+'YEAR 1'!D9","v":0}]
[{"$nulls":4},{"$f":"+'YEAR 3'!D10+'YEAR 2'!D10+'YEAR 1'!D10","v":0}]
[null,"SUB-TOTAL ",null,null,{"$f":"SUM(E5:E10)","v":0}]
[]
[null,"Additional costing not indicated above",null,null," Amount "]
[null,1,null,null,{"$f":"+'YEAR 3'!D14+'YEAR 2'!D14+'YEAR 1'!D14","v":0}]
[null,2,null,null,{"$f":"+'YEAR 3'!D15+'YEAR 2'!D15+'YEAR 1'!D15","v":0}]
[null,3,null,null,{"$f":"+'YEAR 3'!D16+'YEAR 2'!D16+'YEAR 1'!D16","v":0}]
[null,4,null,null,{"$f":"+'YEAR 3'!D17+'YEAR 2'!D17+'YEAR 1'!D17","v":0}]
[{"$nulls":4},{"$f":"SUM(E14:E17)","v":0}]
[]
[null,"TOTAL AMOUNT BEFORE VAT FOR 3 YEARS",null,null,{"$f":"E11+E18","v":0}]
[null,"VAT ",null,null,{"$f":"E20*15/100","v":0}]
[null,"TOTAL AMOUNT (BIDDING PRICE) FOR 3 YEARS",null,null,{"$f":"E20+E21","v":0}]
[null,"Notes:"]
[null,"Pricing must cover all items detailed in the appropriate Terms of Reference (Scope)."]
[null,"Pricing must remain firm for the particurlar year for the duration of the contract."]
[null,"The total VAT amount is calculated automatically in row 17. VAT is required in in this row and If the company is not VAT registered please statVAT is required in a separate row and If the company is not VAT registered please state so below and override the VAT amount"]
[]
[]
[null,"Company Name "]
[]
[null,"Representative Name:"]
[]
[null,"Date:"]
[]
[]
[null,"Signature"]